bitfinex/quotes_SOLUSD_20241013
["timestamp","ask_amount","ask_price","bid_price","bid_amount"]
[1728845174188,6.8668,145.63,145.59,17.1708]
[1728845174516,6.8672,145.62,145.57,6.8695]
[1728845174694,6.8672,145.62,145.56,17.1746]
[1728845174695,1.19552322,145.65,145.56,17.1746]
[1728845174894,1.19552322,145.65,145.56,24.0445]
[1728845174895,6.8677,145.61,145.56,24.0445]
[1728845175215,6.8682,145.6,145.56,17.1746]
[1728845175392,17.66816519,145.64,145.54,15.2548]
[1728845175723,6.8687,145.59,145.54,22.1256]
[1728845176023,6.8687,145.59,145.54,15.2548]
[1728845176224,6.8687,145.59,145.55,6.8703]
[1728845177317,6.8687,145.59,145.54,22.1257]
[1728845178308,6.868,145.61,145.55,6.8704]
[1728845178616,8.30526519,145.61,145.55,6.8704]
[1728845178820,1.43726519,145.61,145.55,6.8704]
[1728845179116,6.8682,145.6,145.55,6.8704]
[1728845196527,1.43726519,145.62,145.54,15.2548]
[1728845196707,8.06240825,145.63,145.58,6.8689]
[1728845196908,8.06240825,145.63,145.59,8.24184355]
[1728845197827,1.19560825,145.63,145.59,8.24184355]
[1728845198043,1.19560825,145.63,145.59,18.54414355]
[1728845198337,6.8658,145.65,145.6,6.868]
[1728845216172,17.74046278,145.67,145.61,1.37320815]
[1728845216361,6.8654,145.66,145.61,1.37320815]
[1728845217274,6.8654,145.66,145.6,1.37312109]
[1728845217445,6.8654,145.66,145.62,6.867]
[1728845217647,6.8654,145.66,145.63,1.37312479]
[1728845218156,6.8654,145.66,145.61,6.8676]
[1728845218757,6.8654,145.66,145.62,1.37310905]
[1728845220378,6.8654,145.66,145.61,6.8676]
[1728845220566,6.8662,145.64,145.6,6.868]
[1728845221948,6.8656,145.66,145.61,8.24072055]
[1728845222666,1.19526278,145.67,145.61,1.37322055]
[1728845222972,8.30146519,145.69,145.64,6.8658]
[1728845223187,8.30146519,145.69,145.65,1.37299518]
[1728845223492,8.30146519,145.69,145.65,1.37300088]
[1728845223493,6.8645,145.68,145.65,1.37300088]
[1728845224687,6.8645,145.68,145.64,1.37299961]
[1728845226693,1.19494769,145.7,145.65,1.37299987]
[1728845226869,1.19494769,145.7,145.66,6.8652]
[1728845226870,8.05844769,145.7,145.66,6.8652]
[1728845227066,6.8635,145.7,145.67,1.37273841]
[1728845228365,6.8635,145.7,145.66,6.8652]
[1728845228678,6.8635,145.7,145.65,6.8657]
[1728845229173,6.8635,145.7,145.66,1.37272695]
[1728845229373,9.49439259,145.73,145.68,6.8642]
[1728845229588,8.0571274,145.73,145.69,1.37253437]
[1728845229790,6.8624,145.73,145.69,1.37253437]
[1728845230099,6.8625,145.72,145.67,17.1613]
[1728845232805,6.8633,145.71,145.65,6.8657]
[1728845237210,1.43726519,145.7,145.64,15.5347]
[1728845237389,6.8653,145.66,145.61,24.0361]
[1728845237778,23.776884,145.71,145.61,24.0361]
[1728845238110,6.8655,145.66,145.61,17.1686]
[1728845238684,6.8655,145.66,145.61,24.0361]
[1728845242115,16.80366519,145.7,145.6,15.5347]
[1728845242314,6.8662,145.65,145.6,15.5347]
[1728845242515,6.8662,145.65,145.59,13.1607]
[1728845244393,7.74116519,145.69,145.59,6.2922]
[1728845244598,6.8644,145.68,145.62,6.8668]
[1728845244921,6.8644,145.68,145.63,1.37293446]
[1728845245828,6.8639,145.69,145.63,1.37293446]
[1728845247202,6.8643,145.68,145.63,6.8667]
[1728845247433,1.43726519,145.7,145.59,23.4632]
[1728845247596,6.8661,145.65,145.59,30.3316]
[1728845250901,6.8662,145.64,145.59,24.0394]
[1728845251099,23.776884,145.66,145.58,15.2569]
[1728845251329,6.8673,145.62,145.58,15.2569]
[1728845252024,6.8673,145.62,145.56,17.1748]
[1728845252229,6.8668,145.63,145.57,6.8693]
[1728845253804,1.43726519,145.65,145.57,6.8693]
[1728845254007,6.8672,145.62,145.57,6.8693]
[1728845255615,15.3328,145.65,145.56,17.1748]
[1728845255919,6.8681,145.6,145.56,17.1748]
[1728845256901,6.8686,145.59,145.54,22.1277]
[1728845262441,6.8687,145.59,145.54,6.8709]
[1728845263948,1.43726519,145.58,145.47,21.8099]
[1728845264237,1.43726519,145.58,145.5,17.1817]
[1728845264457,6.8705,145.55,145.5,24.0541]
[1728845264749,23.776884,145.57,145.47,38.995]
[1728845265041,1.43726519,145.56,145.47,38.995]
[1728845266135,1.43726519,145.56,145.48,23.776884]
[1728845266335,6.8718,145.53,145.48,30.650184]
[1728845266639,6.87,145.56,145.51,6.8722]
[1728845266828,6.87,145.56,145.52,1.37404828]
[1728845270038,6.87,145.56,145.51,6.8722]
[1728845273058,6.87,145.56,145.52,1.37404911]
[1728845273558,6.87,145.56,145.51,6.8722]
[1728845274056,6.87,145.56,145.52,1.37404971]
[1728845274533,6.8695,145.58,145.52,8.24544971]
[1728845275440,6.8695,145.58,145.52,6.8714]
[1728845275641,6.8695,145.57,145.53,1.37386961]
[1728845276045,1.43726519,145.58,145.51,17.1803]
[1728845277365,6.8705,145.55,145.51,17.1803]
[1728845281264,1.43726519,145.58,145.49,6.8732]
[1728845281571,6.8714,145.53,145.49,6.8732]
[1728845281937,1.43726519,145.58,145.48,17.184]
[1728845282169,6.8706,145.55,145.49,25.15097207]
[1728845282340,6.8706,145.55,145.5,6.8728]
[1728845285450,6.8716,145.53,145.48,17.184]
[1728845285746,6.8716,145.53,145.49,6.8733]
[1728845288076,6.8719,145.52,145.48,17.184]
[1728845288246,1.43726519,145.56,145.47,6.8738]
[1728845288439,6.8724,145.51,145.47,6.8738]
[1728845289339,6.872,145.52,145.47,6.8738]
[1728845289868,6.8723,145.51,145.47,6.8738]
[1728845290069,6.8735,145.49,145.45,17.1874]
[1728845290583,8.31006519,145.51,145.45,17.1874]
[1728845290750,15.237,145.52,145.46,6.8745]
[1728845291072,6.8729,145.5,145.45,24.0626]
[1728845291667,6.8729,145.5,145.46,23.776884]
[1728845300158,6.8729,145.5,145.46,30.651584]
[1728845300781,6.8729,145.5,145.45,17.1874]
[1728845300961,6.8734,145.49,145.45,17.1874]
[1728845302289,6.8734,145.49,145.45,24.0625]
[1728845305181,6.8724,145.51,145.45,17.1874]
[1728845305367,6.8724,145.51,145.46,25.15136832]
[1728845306293,6.8724,145.51,145.46,32.02596832]
[1728845306975,1.19642458,145.54,145.46,25.15136832]
[1728845307165,1.19642458,145.54,145.47,17.1848]
[1728845307378,6.871,145.54,145.49,6.8729]
[1728845307693,6.871,145.54,145.5,1.37426798]
[1728845308989,6.8714,145.53,145.49,6.8729]
[1728845309358,6.8714,145.53,145.48,6.8736]
[1728845309891,6.8714,145.53,145.49,1.37428645]
[1728845310091,6.8714,145.53,145.49,8.24738645]
[1728845310678,6.8714,145.53,145.49,6.8731]
[1728845310879,6.8705,145.55,145.51,6.8723]
[1728845311080,6.8701,145.56,145.52,1.37416055]
[1728845311392,6.8696,145.57,145.52,6.8717]
[1728845311577,1.43726519,145.59,145.52,6.8717]
[1728845311779,6.87,145.56,145.52,6.8717]
[1728845313874,6.8708,145.55,145.49,17.1827]
[1728845314068,6.8708,145.55,145.5,23.776884]
[1728845315495,6.8708,145.55,145.5,30.649284]
[1728845319204,21.43726519,145.59,145.49,24.0559]
[1728845320206,6.8714,145.53,145.49,17.1827]
[1728845321319,6.8719,145.52,145.48,6.8737]
[1728845322314,6.8719,145.52,145.47,30.651084]
[1728845324600,6.8719,145.52,145.49,23.776884]
[1728845326314,6.871,145.54,145.49,30.649984]
[1728845326714,6.8714,145.53,145.49,30.649984]
[1728845330931,16.0971,145.55,145.51,23.776884]
[1728845331118,6.8705,145.55,145.51,30.649084]
[1728845333308,6.8705,145.55,145.52,1.37408037]
[1728845334127,6.8705,145.55,145.51,30.649084]
[1728845334326,13.0376,145.56,145.51,30.649084]
[1728845334534,6.8697,145.57,145.52,6.8717]
[1728845334834,6.87,145.56,145.52,6.8717]
[1728845336760,6.8696,145.57,145.52,6.8717]
[1728845337334,6.8691,145.58,145.53,30.648084]
[1728845337532,1.43726519,145.6,145.52,17.179]
[1728845337533,1.43726519,145.6,145.54,8.2446348]
[1728845337843,6.8686,145.59,145.54,8.2446348]
[1728845339061,6.8692,145.58,145.53,30.648184]
[1728845340057,6.8698,145.57,145.52,24.0507]
[1728845340555,6.8701,145.56,145.52,24.0507]
[1728845340856,6.8701,145.56,145.52,17.179]
[1728845341748,6.8701,145.56,145.53,1.37396035]
[1728845341955,6.8695,145.57,145.53,1.37396035]
[1728845343569,6.8695,145.57,145.53,23.776884]
[1728845345457,6.8695,145.57,145.53,30.648284]
[1728845345761,6.8682,145.6,145.55,6.8701]
[1728845345962,6.8682,145.6,145.54,18.5505766]
[1728845345963,6.8682,145.6,145.56,8.24365088]
[1728845346171,16.0971,145.62,145.56,8.24365088]
[1728845346465,6.8672,145.62,145.57,6.8694]
[1728845346662,6.8672,145.62,145.58,1.37353841]
[1728845347471,2.63278117,145.64,145.58,1.37353841]
[1728845347772,2.63278117,145.64,145.59,6.8685]
[1728845348061,2.63278117,145.64,145.53,6.3156]
[1728845348062,6.8676,145.61,145.55,17.1757]
[1728845348265,6.8676,145.61,145.56,23.776884]
[1728845349442,6.8676,145.61,145.56,30.646784]
[1728845349637,6.8676,145.61,145.57,6.8695]
[1728845349961,2.63278117,145.64,145.57,6.8695]
[1728845350170,6.8672,145.62,145.58,8.24252332]
[1728845350738,6.8667,145.63,145.58,8.24252332]
[1728845350956,6.8667,145.63,145.58,6.869]
[1728845351152,1.19551598,145.64,145.59,6.8685]
[1728845351455,15.628,145.65,145.59,6.8685]
[1728845351980,6.8662,145.65,145.6,6.8681]
[1728845352482,6.8653,145.66,145.61,6.8675]
[1728845355884,1.43726519,145.66,145.6,6.8681]
[1728845356084,6.8663,145.64,145.59,17.1708]
[1728845356260,6.8663,145.64,145.59,24.0391]
[1728845358395,17.30386519,145.68,145.61,6.8675]
[1728845358596,6.8653,145.66,145.61,6.8675]
[1728845359295,17.30386519,145.68,145.61,6.8675]
[1728845359474,6.8657,145.65,145.61,6.8675]
[1728845361805,6.8657,145.65,145.62,23.776884]
[1728845362283,6.8657,145.65,145.61,23.776884]
[1728845367589,17.30386519,145.68,145.61,23.776884]
[1728845367806,34.46546519,145.68,145.59,17.1708]
[1728845368119,6.8668,145.63,145.59,17.1708]
[1728845370013,34.46546519,145.68,145.6,8.24125737]
[1728845371394,6.8658,145.65,145.6,8.24125737]
[1728845373115,34.46546519,145.68,145.6,8.24125737]
[1728845373116,6.8653,145.66,145.61,6.8672]
[1728845373412,6.8653,145.66,145.62,1.3730761]
[1728845373792,6.8653,145.66,145.61,6.8672]
[1728845375625,21.43726519,145.67,145.6,23.776884]
[1728845375917,6.8661,145.65,145.6,23.776884]
[1728845376522,6.8661,145.65,145.6,30.644884]
[1728845381803,21.43726519,145.67,145.59,17.1708]
[1728845381998,6.8663,145.64,145.59,24.0392]
[1728845382201,6.8668,145.63,145.59,17.1708]
[1728845385741,6.8668,145.63,145.6,1.37330168]
[1728845386228,6.8668,145.63,145.59,17.1708]
[1728845387144,6.8677,145.61,145.57,6.8694]
[1728845387434,1.43726519,145.66,145.56,17.1745]
[1728845387839,16.286,145.64,145.56,17.1745]
[1728845388011,21.43726519,145.63,145.56,17.1745]
[1728845388213,6.8677,145.61,145.56,24.0445]
[1728845388628,6.8677,145.61,145.57,23.776884]
[1728845398334,1.43726519,145.63,145.59,23.776884]
[1728845398539,6.8672,145.62,145.59,23.776884]
[1728845401159,6.8672,145.62,145.6,1.37349056]
[1728845401361,26.8668,145.63,145.6,1.37349056]
[1728845401549,6.8668,145.63,145.6,1.37349056]
[1728845401860,6.8668,145.63,145.59,23.776884]
[1728845402063,6.8668,145.63,145.6,1.37343479]
[1728845402239,6.8668,145.63,145.59,23.776884]
[1728845402857,23.1523,145.64,145.6,1.37343441]
[1728845403059,6.8663,145.64,145.61,23.776884]
[1728845403566,6.8663,145.64,145.62,1.37330684]
[1728845404562,6.8663,145.64,145.61,23.776884]
[1728845404943,6.8671,145.62,145.59,23.776884]
[1728845405436,1.43726519,145.67,145.59,23.776884]
[1728845405437,6.8668,145.63,145.59,23.776884]
[1728845407243,6.8663,145.64,145.61,23.776884]
[1728845408765,21.43726519,145.67,145.63,23.776884]
[1728845409064,26.8652,145.67,145.64,1.37308978]
[1728845409271,26.8652,145.67,145.65,23.776884]
[1728845409441,8.30106519,145.7,145.66,1.37302146]
[1728845409644,6.8644,145.68,145.64,17.1644]
[1728845409836,6.8649,145.67,145.65,23.776884]
[1728845412885,1.43726519,145.7,145.66,6.8651]
[1728845413062,26.8634,145.7,145.66,1.37295204]
[1728845413968,26.8634,145.7,145.65,30.642584]
[1728845414163,6.8639,145.69,145.66,1.37281655]
[1728845414367,6.8639,145.69,145.65,30.642584]
[1728845414706,6.8639,145.69,145.64,30.643084]
[1728845415557,6.8639,145.69,145.66,23.776884]
[1728845415880,6.8639,145.69,145.67,1.37280739]
[1728845418278,6.8639,145.69,145.64,6.8662]
[1728845418279,6.8639,145.69,145.65,23.776884]
[1728845418684,6.8639,145.69,145.66,1.37282846]
[1728845418984,6.8635,145.7,145.66,25.14971246]
[1728845422498,6.8635,145.7,145.66,23.776884]
[1728845422789,6.8638,145.69,145.66,23.776884]
[1728845425270,6.8629,145.71,145.68,23.776884]
[1728845426794,5.8629,145.71,145.68,23.776884]
[1728845430205,5.8629,145.71,145.69,1.37264543]
[1728845430393,6.8625,145.72,145.69,1.37264543]
[1728845431213,6.8625,145.72,145.68,23.776884]
[1728845432182,6.8625,145.72,145.69,1.37260076]
[1728845433212,1.19460882,145.75,145.7,23.776884]
[1728845433398,6.8616,145.74,145.71,1.37234992]
[1728845433912,6.8616,145.74,145.72,23.776884]
[1728845434287,1.19460882,145.75,145.72,23.776884]
[1728845434481,20.0,145.75,145.72,23.776884]
[1728845434999,1.43726519,145.76,145.72,23.776884]
[1728845435189,6.8612,145.75,145.72,23.776884]
[1728845435706,6.8606,145.76,145.71,30.639684]
[1728845436492,1.43726519,145.77,145.71,23.776884]
[1728845437400,6.8616,145.74,145.71,23.776884]
[1728845437601,21.43726519,145.77,145.7,23.776884]
[1728845437914,6.8626,145.72,145.69,23.776884]
[1728845438117,6.8626,145.72,145.68,23.776884]
[1728845438619,6.8626,145.72,145.69,23.776884]
[1728845439322,6.8626,145.72,145.68,23.776884]
[1728845439695,6.8629,145.71,145.68,23.776884]
[1728845440513,20.0,145.75,145.62,21.3617]
[1728845440818,6.8639,145.69,145.63,17.1663]
[1728845440988,6.8639,145.69,145.64,6.8661]
[1728845441615,21.43726519,145.72,145.63,17.1663]
[1728845441916,27.89586519,145.72,145.63,17.1663]
[1728845442223,6.8644,145.68,145.63,24.0328]
[1728845443115,6.8644,145.68,145.64,23.776884]
[1728845443302,6.8644,145.68,145.65,1.37288112]
[1728845443500,6.8644,145.68,145.64,23.776884]
[1728845444020,6.8648,145.67,145.64,23.776884]
[1728845445093,27.89586519,145.72,145.63,23.776884]
[1728845445296,6.8657,145.65,145.63,23.776884]
[1728845445599,1.43726519,145.69,145.62,23.776884]
[1728845445804,1.43726519,145.69,145.63,25.149891]
[1728845446005,6.8639,145.69,145.63,25.149891]
[1728845446210,6.8639,145.69,145.65,6.8656]
[1728845446414,6.8639,145.69,145.67,23.776884]
[1728845447519,6.8635,145.7,145.67,23.776884]
[1728845448228,6.8635,145.7,145.66,1.37280419]
[1728845448532,6.8635,145.7,145.67,23.776884]
[1728845449235,6.8635,145.7,145.66,23.776884]
[1728845449935,1.43726519,145.71,145.66,23.776884]
[1728845449936,6.8639,145.69,145.66,23.776884]
[1728845452520,6.8644,145.68,145.66,23.776884]
[1728845452709,6.8655,145.66,145.63,23.776884]
[1728845453336,6.8648,145.67,145.63,23.776884]
[1728845455031,38.59576519,145.71,145.62,24.0343]
[1728845455032,1.1950292,145.7,145.62,17.1672]
[1728845455237,6.8662,145.64,145.59,39.3677]
[1728845455440,6.8662,145.64,145.6,8.58845211]
[1728845455618,6.8662,145.64,145.61,1.72045211]
[1728845455818,6.8662,145.64,145.6,6.868]
[1728845456131,6.8662,145.64,145.61,1.72050742]
[1728845456330,6.8662,145.64,145.6,6.868]
[1728845456525,6.8662,145.64,145.62,23.776884]
[1728845456715,6.8658,145.65,145.6,6.868]
[1728845456917,6.8658,145.65,145.61,1.72048469]
[1728845457115,6.8658,145.65,145.62,1.37323053]
[1728845458209,6.8658,145.65,145.62,23.776884]
[1728845458724,6.8658,145.65,145.61,23.776884]
[1728845460321,6.8653,145.66,145.63,23.776884]
[1728845462047,6.8653,145.66,145.62,23.776884]
[1728845462212,6.8653,145.66,145.62,25.1500892]
[1728845462410,6.8649,145.67,145.62,32.0171892]
[1728845462607,6.8649,145.67,145.62,30.643984]
[1728845463009,6.8649,145.67,145.64,23.776884]
[1728845463511,8.30216519,145.67,145.63,23.776884]
[1728845465529,6.8657,145.66,145.62,23.776884]
[1728845465709,1.43726519,145.65,145.62,23.776884]
[1728845465910,1.43726519,145.66,145.62,23.776884]
[1728845467445,6.8661,145.65,145.62,23.776884]
[1728845467818,1.43726519,145.67,145.62,25.15013612]
[1728845468128,1.43726519,145.69,145.62,25.15013612]
[1728845468318,6.8643,145.68,145.63,6.8662]
[1728845468524,6.8643,145.68,145.64,1.37306466]
[1728845468728,1.1950292,145.7,145.64,23.776884]
[1728845468729,8.30206519,145.67,145.64,23.776884]
[1728845469546,6.8648,145.67,145.64,23.776884]
[1728845470060,6.8648,145.67,145.64,25.14994997]
[1728845470356,6.8648,145.67,145.64,23.776884]
[1728845471424,6.8648,145.67,145.64,25.14994904]
[1728845471653,6.8643,145.68,145.64,25.14994904]
[1728845472550,6.8643,145.68,145.64,23.776884]
[1728845473247,6.8643,145.68,145.64,25.14990475]
[1728845474764,6.8643,145.68,145.64,23.776884]
[1728845475449,1.43726519,145.67,145.64,23.776884]
[1728845475618,1.43726519,145.7,145.59,15.3285]
[1728845475819,1.43726519,145.7,145.6,1.72043923]
[1728845475820,6.8668,145.63,145.6,1.72043923]
[1728845476042,6.8668,145.63,145.58,24.041]
[1728845477148,6.8668,145.63,145.59,23.776884]
[1728845479555,6.8668,145.63,145.59,30.645284]
[1728845479856,6.8668,145.63,145.6,1.37342186]
[1728845482343,6.8668,145.63,145.59,30.645284]
[1728845484453,6.8668,145.63,145.6,1.37342787]
[1728845484857,6.8657,145.65,145.6,8.24142787]
[1728845487251,6.8657,145.65,145.6,6.868]
[1728845487972,1.43726519,145.64,145.59,23.776884]
[1728845488150,6.8672,145.62,145.59,23.776884]
[1728845488459,1.43726519,145.66,145.58,30.645684]
[1728845489374,6.8671,145.63,145.58,30.645684]
[1728845493280,6.8663,145.64,145.59,8.2418707]
[1728845494066,6.8663,145.64,145.59,6.8684]
[1728845494375,8.30396519,145.63,145.59,6.8684]
[1728845494565,6.8667,145.63,145.59,6.8684]
[1728845495085,1.43726519,145.66,145.6,1.3734686]
[1728845495252,6.8663,145.64,145.6,1.3734686]
[1728845495462,6.8663,145.64,145.6,23.776884]
[1728845495668,8.30396519,145.63,145.59,6.8684]
[1728845495860,8.30396519,145.63,145.58,30.645784]
[1728845496260,8.30396519,145.63,145.59,1.37346924]
[1728845496479,6.8667,145.63,145.59,1.37346924]
[1728845496785,6.8667,145.63,145.59,8.24196924]
[1728845497391,6.8667,145.63,145.59,6.8685]
[1728845498164,6.8667,145.63,145.59,8.24196874]
[1728845498849,2.63249645,145.65,145.59,8.24196874]
[1728845499052,6.8662,145.64,145.6,23.776884]
[1728845499252,6.8662,145.64,145.61,1.37337444]
[1728845499452,8.30346519,145.64,145.6,25.1502605]
[1728845499683,8.30346519,145.64,145.6,25.15028658]
[1728845499882,6.8662,145.64,145.6,25.15028658]
[1728845500655,6.8662,145.64,145.6,23.776884]
[1728845502672,6.8662,145.64,145.6,25.15025868]
[1728845503584,6.8662,145.64,145.6,23.776884]
[1728845503968,1.43726519,145.63,145.57,17.1731]
[1728845504175,6.8672,145.62,145.58,32.36671201]
[1728845504365,6.8672,145.62,145.58,30.645884]
[1728845509002,2.63249645,145.65,145.58,30.645884]
[1728845509202,6.8667,145.63,145.58,30.645884]
[1728845511005,9.49859645,145.65,145.6,23.776884]
[1728845511201,8.30336519,145.65,145.61,1.37336657]
[1728845511704,6.8661,145.65,145.62,23.776884]
[1728845512078,22.63246938,145.67,145.62,23.776884]
[1728845512320,6.8653,145.66,145.62,6.867]
[1728845512492,6.8653,145.66,145.63,23.776884]
[1728845513500,6.8653,145.66,145.63,25.15005967]
[1728845515405,6.8653,145.66,145.63,23.776884]
[1728845517110,6.8653,145.66,145.62,23.776884]
[1728845520392,8.30316519,145.65,145.61,23.776884]
[1728845520588,6.8663,145.64,145.59,24.0392]
[1728845520793,6.8668,145.63,145.59,17.1707]
[1728845521119,6.8662,145.64,145.6,3.09412912]
[1728845521417,6.8662,145.64,145.6,1.37341088]
[1728845527127,6.8658,145.65,145.61,23.776884]
[1728845527358,1.43726519,145.67,145.63,23.776884]
[1728845527622,1.19509516,145.69,145.65,23.776884]
[1728845527997,8.05899516,145.69,145.65,23.776884]
[1728845528500,8.30026519,145.71,145.67,23.776884]
[1728845528713,8.29976519,145.72,145.68,1.37273697]
[1728845528895,8.29976519,145.72,145.67,23.776884]
[1728845530631,8.29976519,145.72,145.68,1.37270399]
[1728845533152,6.8625,145.72,145.69,23.776884]
[1728845533538,6.8625,145.72,145.68,23.776884]
[1728845534859,6.8625,145.72,145.68,25.14949223]
[1728845535164,6.8625,145.72,145.68,23.776884]
[1728845535852,1.43726519,145.71,145.68,23.776884]
[1728845536252,8.30026519,145.71,145.68,23.776884]
[1728845537763,8.30026519,145.71,145.67,23.776884]
[1728845537950,6.863,145.71,145.67,23.776884]
[1728845538134,6.863,145.71,145.68,1.3726667]
[1728845538335,6.863,145.71,145.67,23.776884]
[1728845542573,6.863,145.71,145.66,6.8652]
[1728845542868,6.863,145.71,145.67,1.37276084]
[1728845544072,6.863,145.71,145.68,23.776884]
[1728845549852,6.863,145.71,145.67,23.776884]
[1728845551155,6.863,145.71,145.67,25.14960801]
[1728845551767,2.63189967,145.73,145.67,25.14960801]
[1728845551957,6.8621,145.73,145.69,23.776884]
[1728845552258,6.8621,145.73,145.7,1.37252993]
[1728845553377,8.05553605,145.75,145.71,23.776884]
[1728845553595,8.05553605,145.75,145.72,1.37230954]
[1728845554264,1.19443605,145.75,145.72,1.37230954]
[1728845554573,8.29786519,145.76,145.72,1.37230954]
[1728845556484,6.861,145.75,145.72,1.37230954]
[1728845557685,6.861,145.75,145.71,30.639784]
[1728845558482,6.861,145.75,145.69,17.1591]
[1728845558483,6.861,145.75,145.7,30.640084]
[1728845558787,1.43726519,145.74,145.7,23.776884]
[1728845559165,6.8621,145.73,145.7,23.776884]
[1728845560077,6.8616,145.74,145.7,23.776884]
[1728845566293,6.8616,145.74,145.71,1.37238546]
[1728845567703,6.8616,145.74,145.7,23.776884]
[1728845568077,6.8616,145.74,145.71,1.37238428]
[1728845568691,6.8611,145.75,145.72,23.776884]
[1728845568890,6.8611,145.75,145.7,30.640184]
[1728845572092,6.8611,145.75,145.72,23.776884]
[1728845573392,6.8611,145.75,145.71,23.776884]
[1728845576102,6.8611,145.75,145.72,1.37228045]
[1728845577136,8.05477139,145.77,145.73,23.776884]
[1728845577436,8.05477139,145.77,145.74,1.37214494]
[1728845580718,8.05477139,145.77,145.73,23.776884]
[1728845581838,8.05477139,145.77,145.74,1.37214673]
[1728845582136,8.05477139,145.77,145.73,23.776884]
[1728845583442,1.43726519,145.76,145.72,23.776884]
[1728845583743,1.43726519,145.76,145.68,24.0246]
[1728845583744,6.8624,145.72,145.68,24.0246]
[1728845583941,6.8629,145.71,145.66,29.8669]
[1728845584115,6.8629,145.71,145.67,1.71966302]
[1728845584319,6.8629,145.71,145.66,29.8669]
[1728845584516,6.8629,145.71,145.67,1.7196913]
[1728845584848,6.8629,145.71,145.66,29.8669]
[1728845585039,6.8626,145.72,145.67,8.58441716]
[1728845585215,6.8626,145.72,145.68,23.776884]
[1728845585420,1.43726519,145.74,145.68,23.776884]
[1728845585421,6.8633,145.71,145.68,23.776884]
[1728845585620,6.8634,145.7,145.66,23.4053]
[1728845585822,6.8634,145.7,145.67,1.71977237]
[1728845586048,6.8634,145.7,145.65,24.0298]
[1728845586227,6.8634,145.7,145.66,1.7198225]
[1728845586547,6.8634,145.7,145.65,24.0298]
[1728845586749,6.8634,145.7,145.66,3.09260675]
[1728845586932,6.8634,145.7,145.66,1.37277749]
[1728845587459,6.8639,145.69,145.66,23.776884]
[1728845588324,1.43726519,145.74,145.66,23.776884]
[1728845588632,6.8634,145.7,145.66,23.776884]
[1728845592157,6.8634,145.7,145.67,1.37277816]
[1728845594349,6.8634,145.7,145.66,23.776884]
[1728845597269,6.8634,145.7,145.66,30.642084]
[1728845597568,6.863,145.71,145.68,23.776884]
[1728845598064,6.863,145.71,145.67,23.776884]
[1728845604280,6.863,145.71,145.62,6.867]
[1728845604281,6.8651,145.67,145.62,6.867]
[1728845604568,6.8651,145.67,145.63,1.72019636]
[1728845604742,6.8651,145.67,145.62,6.867]
[1728845604937,6.8651,145.67,145.63,1.72022372]
[1728845605140,6.8651,145.67,145.62,6.867]
[1728845605368,8.30266519,145.66,145.62,6.867]
[1728845605575,6.8649,145.67,145.62,6.867]
[1728845606547,6.8649,145.67,145.63,23.776884]
[1728845607646,1.43726519,145.7,145.64,1.37309303]
[1728845607852,6.8644,145.68,145.64,1.37309303]
[1728845608666,6.8644,145.68,145.65,23.776884]
[1728845609058,6.8644,145.68,145.64,23.776884]
[1728845610078,1.43726519,145.67,145.64,23.776884]
[1728845610263,6.8649,145.67,145.64,23.776884]
[1728845610576,6.8649,145.67,145.63,23.776884]
[1728845612155,1.43726519,145.7,145.64,6.8658]
[1728845612467,6.8644,145.68,145.64,23.776884]
[1728845617458,1.43726519,145.7,145.64,23.776884]
[1728845617669,6.8648,145.67,145.64,23.776884]
[1728845624095,6.8648,145.67,145.63,24.0325]
[1728845624883,6.8648,145.67,145.64,1.3730288]
[1728845625378,6.8648,145.67,145.63,24.0325]
[1728845643628,6.8648,145.67,145.63,17.1659]
[1728845648433,2.6321803,145.7,145.6,40.3618]
[1728845648434,6.8658,145.65,145.6,40.3618]
[1728845648629,6.8658,145.65,145.61,25.49734647]